[Event "Titled Tuesday Blitz August 08 Early 2023"]
[White "Aradhya, Garg"]
[Black "LeoLV10"]
[WhiteFideId "25006746"]
[WhiteElo "2767"]
[BlackElo "2543"]
[Result "1/2-1/2"]
[Round "2"]
[TimeControl "180+1"]
[Date "2023.08.08"]
[WhiteClock "0:00:06"]
[BlackClock "0:00:13"]
[Board "78"]

1. d4 {[%clk 0:03:00]}  Nf6 {[%clk 0:02:59]} 2. Nf3 {[%clk 0:03:01]}  e6 {[%clk 0:02:57]} 3. Bg5 {[%clk 0:03:00]}  Be7 {[%clk 0:02:56]} 4. c4 {[%clk 0:03:00]}  d5 {[%clk 0:02:55]} 5. Nc3 {[%clk 0:02:59]}  c6 {[%clk 0:02:48]} 6. e3 {[%clk 0:02:59]}  Nbd7 {[%clk 0:02:47]} 7. Rc1 {[%clk 0:02:59]}  O-O {[%clk 0:02:42]} 8. Qc2 {[%clk 0:02:57]}  h6 {[%clk 0:02:42]} 9. Bh4 {[%clk 0:02:56]}  b6 {[%clk 0:02:38]} 10. cxd5 {[%clk 0:02:54]}  exd5 {[%clk 0:02:39]} 11. Bd3 {[%clk 0:02:54]}  Bb7 {[%clk 0:02:33]} 12. O-O {[%clk 0:02:54]}  Rc8 {[%clk 0:02:33]} 13. a3 {[%clk 0:02:25]}  Re8 {[%clk 0:02:20]} 14. b4 {[%clk 0:02:24]}  Ba8 {[%clk 0:02:17]} 15. Ba6 {[%clk 0:02:19]}  Rb8 {[%clk 0:02:16]} 16. Bg3 {[%clk 0:02:18]}  Bb7 {[%clk 0:02:00]} 17. Qd3 {[%clk 0:01:48]}  Bxa6 {[%clk 0:01:50]} 18. Qxa6 {[%clk 0:01:49]}  Ra8 {[%clk 0:01:51]} 19. Qb7 {[%clk 0:01:43]}  Qc8 {[%clk 0:01:48]} 20. Qxc8 {[%clk 0:01:43]}  Rexc8 {[%clk 0:01:49]} 21. Rc2 {[%clk 0:01:35]}  c5 {[%clk 0:01:46]} 22. bxc5 {[%clk 0:01:31]}  bxc5 {[%clk 0:01:46]} 23. Nb5 {[%clk 0:01:28]}  a6 {[%clk 0:01:41]} 24. Nd6 {[%clk 0:01:22]}  Rc6 {[%clk 0:01:31]} 25. dxc5 {[%clk 0:01:16]}  Rxc5 {[%clk 0:01:24]} 26. Rfc1 {[%clk 0:01:13]}  Rxc2 {[%clk 0:01:16]} 27. Rxc2 {[%clk 0:01:14]}  Nf8 {[%clk 0:01:12]} 28. Nd4 {[%clk 0:01:10]}  Ne4 {[%clk 0:01:06]} 29. N4f5 {[%clk 0:01:10]}  Bxd6 {[%clk 0:00:59]} 30. Bxd6 {[%clk 0:01:09]}  Ne6 {[%clk 0:00:52]} 31. Be5 {[%clk 0:01:00]}  f6 {[%clk 0:00:38]} 32. Bb2 {[%clk 0:00:58]}  Rb8 {[%clk 0:00:35]} 33. f3 {[%clk 0:00:45]}  N4c5 {[%clk 0:00:30]} 34. Ne7+ {[%clk 0:00:46]}  Kf7 {[%clk 0:00:30]} 35. Nxd5 {[%clk 0:00:46]}  Nd3 {[%clk 0:00:31]} 36. Nb4 {[%clk 0:00:37]}  Nxb4 {[%clk 0:00:30]} 37. axb4 {[%clk 0:00:37]}  Rxb4 {[%clk 0:00:31]} 38. Rd2 {[%clk 0:00:34]}  Rb7 {[%clk 0:00:28]} 39. Bc3 {[%clk 0:00:26]}  Rc7 {[%clk 0:00:27]} 40. Ba5 {[%clk 0:00:25]}  Rc1+ {[%clk 0:00:27]} 41. Kf2 {[%clk 0:00:25]}  Ra1 {[%clk 0:00:27]} 42. Rd7+ {[%clk 0:00:21]}  Ke8 {[%clk 0:00:27]} 43. Rd5 {[%clk 0:00:22]}  Kf7 {[%clk 0:00:23]} 44. h4 {[%clk 0:00:21]}  Nf8 {[%clk 0:00:22]} 45. h5 {[%clk 0:00:19]}  Ke6 {[%clk 0:00:20]} 46. e4 {[%clk 0:00:17]}  Nd7 {[%clk 0:00:20]} 47. Bb4 {[%clk 0:00:14]}  Ne5 {[%clk 0:00:18]} 48. Rd6+ {[%clk 0:00:14]}  Kf7 {[%clk 0:00:19]} 49. Bc3 {[%clk 0:00:14]}  Ra2+ {[%clk 0:00:19]} 50. Kg3 {[%clk 0:00:15]}  Ke7 {[%clk 0:00:16]} 51. Bxe5 {[%clk 0:00:15]}  fxe5 {[%clk 0:00:17]} 52. Rg6 {[%clk 0:00:15]}  Kf7 {[%clk 0:00:17]} 53. Rb6 {[%clk 0:00:15]}  a5 {[%clk 0:00:17]} 54. Kh3 {[%clk 0:00:15]}  a4 {[%clk 0:00:18]} 55. Ra6 {[%clk 0:00:14]}  a3 {[%clk 0:00:18]} 56. g3 {[%clk 0:00:15]}  Ra1 {[%clk 0:00:17]} 57. Kg4 {[%clk 0:00:15]}  a2 {[%clk 0:00:17]} 58. Kf5 {[%clk 0:00:13]}  Rf1 {[%clk 0:00:16]} 59. Rxa2 {[%clk 0:00:12]}  Rxf3+ {[%clk 0:00:17]} 60. Kxe5 {[%clk 0:00:10]}  Rxg3 {[%clk 0:00:17]} 61. Ra7+ {[%clk 0:00:09]}  Ke8 {[%clk 0:00:18]} 62. Ke6 {[%clk 0:00:08]}  Kd8 {[%clk 0:00:15]} 63. e5 {[%clk 0:00:09]}  Rg5 {[%clk 0:00:15]} 64. Ra8+ {[%clk 0:00:05]}  Kc7 {[%clk 0:00:15]} 65. Rg8 {[%clk 0:00:06]}  Kc6 {[%clk 0:00:13]} 66. Rc8+ {[%clk 0:00:06]}  Kb7 {[%clk 0:00:13]} 67. Rg8 {[%clk 0:00:06]}  Kc6 {[%clk 0:00:13]} 68. Kf7 {[%clk 0:00:06]}  Rxe5 {[%clk 0:00:13]} 69. Kxg7 {[%clk 0:00:05]}  Rxh5 {[%clk 0:00:13]} 70. Kh7 {[%clk 0:00:05]}  Rg5 {[%clk 0:00:13]} 71. Rg6+ {[%clk 0:00:04]}  Rxg6 {[%clk 0:00:12]} 72. Kxg6 {[%clk 0:00:04]}  Kd5 {[%clk 0:00:13]} 73. Kh5 {[%clk 0:00:05]}  Ke4 {[%clk 0:00:13]} 74. Kxh6 {[%clk 0:00:06]} 1/2-1/2


[Site "https://www.chess.com"]

[Event "Titled Tuesday Blitz August 08 Early 2023"]
[White "Deng, Henry"]
[Black "Adewumi, Tanitoluwa"]
[WhiteFideId "30965454"]
[BlackFideId "30966396"]
[WhiteElo "2537"]
[BlackElo "2760"]
[Result "1-0"]
[Round "2"]
[TimeControl "180+1"]
[Date "2023.08.08"]
[WhiteClock "0:01:30"]
[BlackClock "0:00:04"]
[Board "81"]

1. b3 {[%clk 0:02:59]}  Nf6 {[%clk 0:02:55]} 2. Bb2 {[%clk 0:02:59]}  g6 {[%clk 0:02:55]} 3. e3 {[%clk 0:02:59]}  Bg7 {[%clk 0:02:56]} 4. Nf3 {[%clk 0:02:59]}  O-O {[%clk 0:02:56]} 5. Be2 {[%clk 0:02:57]}  d5 {[%clk 0:02:55]} 6. O-O {[%clk 0:02:57]}  c5 {[%clk 0:02:54]} 7. d4 {[%clk 0:02:57]}  cxd4 {[%clk 0:02:53]} 8. Nxd4 {[%clk 0:02:52]}  Ne4 {[%clk 0:02:47]} 9. Nd2 {[%clk 0:02:48]}  Nxd2 {[%clk 0:02:35]} 10. Qxd2 {[%clk 0:02:49]}  e5 {[%clk 0:02:35]} 11. Nf3 {[%clk 0:02:48]}  Nc6 {[%clk 0:02:34]} 12. Rad1 {[%clk 0:02:47]}  Be6 {[%clk 0:02:34]} 13. c4 {[%clk 0:02:36]}  dxc4 {[%clk 0:02:27]} 14. Qc1 {[%clk 0:02:35]}  Qa5 {[%clk 0:02:22]} 15. Bxc4 {[%clk 0:02:35]}  Bxc4 {[%clk 0:02:20]} 16. Qxc4 {[%clk 0:02:35]}  Qxa2 {[%clk 0:01:43]} 17. Bc3 {[%clk 0:02:29]}  Qa3 {[%clk 0:01:18]} 18. Rd7 {[%clk 0:02:13]}  Rac8 {[%clk 0:01:07]} 19. Ra1 {[%clk 0:02:06]}  Nb8 {[%clk 0:00:26]} 20. Rxa3 {[%clk 0:01:57]}  Rxc4 {[%clk 0:00:26]} 21. bxc4 {[%clk 0:01:58]}  Nxd7 {[%clk 0:00:26]} 22. Rxa7 {[%clk 0:01:59]}  Rc8 {[%clk 0:00:20]} 23. Rxb7 {[%clk 0:01:58]}  Rxc4 {[%clk 0:00:20]} 24. Rxd7 {[%clk 0:01:54]}  Rxc3 {[%clk 0:00:20]} 25. Rd8+ {[%clk 0:01:50]}  Bf8 {[%clk 0:00:20]} 26. g3 {[%clk 0:01:49]}  f6 {[%clk 0:00:19]} 27. Nd2 {[%clk 0:01:47]}  Kf7 {[%clk 0:00:18]} 28. Ne4 {[%clk 0:01:48]}  Rc6 {[%clk 0:00:17]} 29. Rd7+ {[%clk 0:01:43]}  Be7 {[%clk 0:00:16]} 30. Kg2 {[%clk 0:01:43]}  Ke6 {[%clk 0:00:16]} 31. Ra7 {[%clk 0:01:36]}  h5 {[%clk 0:00:16]} 32. h4 {[%clk 0:01:35]}  Rc4 {[%clk 0:00:13]} 33. Nd2 {[%clk 0:01:35]}  Rc2 {[%clk 0:00:13]} 34. Ne4 {[%clk 0:01:34]}  Bd8 {[%clk 0:00:10]} 35. Ra6+ {[%clk 0:01:33]}  Kf7 {[%clk 0:00:06]} 36. Nd6+ {[%clk 0:01:33]}  Ke6 {[%clk 0:00:04]} 37. Ne4+ {[%clk 0:01:33]}  Kf7 {[%clk 0:00:03]} 38. Nd6+ {[%clk 0:01:33]}  Kf8 {[%clk 0:00:04]} 39. Ne4 {[%clk 0:01:31]}  Kg7 {[%clk 0:00:02]} 40. Ra7+ {[%clk 0:01:31]}  Kh6 {[%clk 0:00:03]} 41. Rd7 {[%clk 0:01:31]}  Bb6 {[%clk 0:00:02]} 42. Nxf6 {[%clk 0:01:31]}  g5 {[%clk 0:00:02]} 43. hxg5+ {[%clk 0:01:30]}  Kxg5 {[%clk 0:00:03]} 44. Ne4+ {[%clk 0:01:30]}  Kf5 {[%clk 0:00:04]} 45. Kf3 {[%clk 0:01:30]}  Ke6 {[%clk 0:00:04]} 46. Rd6+ {[%clk 0:01:30]}  Kf5 {[%clk 0:00:04]} 47. Rf6# {[%clk 0:01:30]} 1-0


[Site "https://www.chess.com"]

[Event "Titled Tuesday Blitz August 08 Early 2023"]
[White "Kumsiashvili, Nikoloz"]
[Black "Keleberda, Tymur"]
[WhiteFideId "13600621"]
[BlackFideId "14174294"]
[WhiteElo "2757"]
[BlackElo "2535"]
[Result "0-1"]
[Round "2"]
[TimeControl "180+1"]
[Date "2023.08.08"]
[WhiteClock "0:00:14"]
[BlackClock "0:00:53"]
[Board "82"]

1. Nf3 {[%clk 0:03:00]}  Nf6 {[%clk 0:02:58]} 2. b3 {[%clk 0:03:00]}  e6 {[%clk 0:02:57]} 3. Bb2 {[%clk 0:03:01]}  b6 {[%clk 0:02:57]} 4. e3 {[%clk 0:03:00]}  c5 {[%clk 0:02:57]} 5. c4 {[%clk 0:03:00]}  Bb7 {[%clk 0:02:58]} 6. d4 {[%clk 0:03:00]}  d5 {[%clk 0:02:57]} 7. dxc5 {[%clk 0:02:59]}  Bxc5 {[%clk 0:02:57]} 8. cxd5 {[%clk 0:02:59]}  Bxd5 {[%clk 0:02:56]} 9. Nc3 {[%clk 0:02:54]}  Bb7 {[%clk 0:02:51]} 10. Bb5+ {[%clk 0:02:51]}  Nbd7 {[%clk 0:02:51]} 11. Ne5 {[%clk 0:02:20]}  a6 {[%clk 0:02:46]} 12. Bxd7+ {[%clk 0:01:59]}  Nxd7 {[%clk 0:02:46]} 13. Nxd7 {[%clk 0:01:59]}  Qxd7 {[%clk 0:02:47]} 14. Qxd7+ {[%clk 0:02:00]}  Kxd7 {[%clk 0:02:47]} 15. O-O {[%clk 0:02:01]}  b5 {[%clk 0:02:34]} 16. Rac1 {[%clk 0:01:58]}  Bb6 {[%clk 0:02:28]} 17. Ne2 {[%clk 0:01:56]}  Rhc8 {[%clk 0:02:15]} 18. Bd4 {[%clk 0:01:28]}  Bxd4 {[%clk 0:02:04]} 19. Nxd4 {[%clk 0:01:29]}  Ke7 {[%clk 0:02:03]} 20. f3 {[%clk 0:01:25]}  Rxc1 {[%clk 0:01:46]} 21. Rxc1 {[%clk 0:01:24]}  Rc8 {[%clk 0:01:46]} 22. Rxc8 {[%clk 0:01:19]}  Bxc8 {[%clk 0:01:47]} 23. b4 {[%clk 0:01:16]}  e5 {[%clk 0:01:46]} 24. Ne2 {[%clk 0:01:08]}  Be6 {[%clk 0:01:33]} 25. Nc3 {[%clk 0:01:05]}  Kd6 {[%clk 0:01:32]} 26. a3 {[%clk 0:01:01]}  Kc6 {[%clk 0:01:31]} 27. Kf2 {[%clk 0:00:57]}  Kb6 {[%clk 0:01:31]} 28. f4 {[%clk 0:00:51]}  exf4 {[%clk 0:01:27]} 29. exf4 {[%clk 0:00:51]}  a5 {[%clk 0:01:27]} 30. Ke3 {[%clk 0:00:50]}  axb4 {[%clk 0:01:27]} 31. axb4 {[%clk 0:00:50]}  Kc6 {[%clk 0:01:22]} 32. Kd4 {[%clk 0:00:50]}  f6 {[%clk 0:01:22]} 33. g3 {[%clk 0:00:47]}  Bc4 {[%clk 0:01:19]} 34. Ne4 {[%clk 0:00:44]}  Bf1 {[%clk 0:01:13]} 35. g4 {[%clk 0:00:41]}  h6 {[%clk 0:01:12]} 36. Ng3 {[%clk 0:00:35]}  Bh3 {[%clk 0:01:12]} 37. Nf5 {[%clk 0:00:33]}  Bxg4 {[%clk 0:01:12]} 38. Nxg7 {[%clk 0:00:33]}  Kd7 {[%clk 0:01:05]} 39. Ke4 {[%clk 0:00:27]}  Ke7 {[%clk 0:01:05]} 40. f5 {[%clk 0:00:27]}  Bd1 {[%clk 0:00:55]} 41. Ne6 {[%clk 0:00:24]}  Bc2+ {[%clk 0:00:55]} 42. Kf4 {[%clk 0:00:24]}  Kd6 {[%clk 0:00:55]} 43. Nd4 {[%clk 0:00:23]}  Bd3 {[%clk 0:00:55]} 44. Ke3 {[%clk 0:00:23]}  Bf1 {[%clk 0:00:54]} 45. Ke4 {[%clk 0:00:20]}  Bc4 {[%clk 0:00:53]} 46. h4 {[%clk 0:00:19]}  h5 {[%clk 0:00:53]} 47. Ne2 {[%clk 0:00:14]}  Bxe2 {[%clk 0:00:53]} 0-1


[Site "https://www.chess.com"]

[Event "Titled Tuesday Blitz August 08 Early 2023"]
[White "Nazari, Arad"]
[Black "Ismagilov, Damir"]
[WhiteFideId "12577324"]
[BlackFideId "34199982"]
[WhiteElo "2751"]
[BlackElo "2532"]
[Result "0-1"]
[Round "2"]
[TimeControl "180+1"]
[Date "2023.08.08"]
[WhiteClock "0:00:10"]
[BlackClock "0:00:13"]
[Board "86"]

1. e4 {[%clk 0:03:00]}  c5 {[%clk 0:02:58]} 2. Nf3 {[%clk 0:03:01]}  Nc6 {[%clk 0:02:59]} 3. Bb5 {[%clk 0:03:01]}  e6 {[%clk 0:02:58]} 4. O-O {[%clk 0:03:00]}  Nge7 {[%clk 0:02:58]} 5. d4 {[%clk 0:03:01]}  cxd4 {[%clk 0:02:57]} 6. Nxd4 {[%clk 0:03:02]}  a6 {[%clk 0:02:55]} 7. Nxc6 {[%clk 0:03:02]}  Nxc6 {[%clk 0:02:53]} 8. Be2 {[%clk 0:03:00]}  Bc5 {[%clk 0:02:51]} 9. Nc3 {[%clk 0:02:48]}  b5 {[%clk 0:02:51]} 10. Qd3 {[%clk 0:02:29]}  Bb7 {[%clk 0:02:50]} 11. a3 {[%clk 0:02:27]}  Ne5 {[%clk 0:02:46]} 12. Qg3 {[%clk 0:02:26]}  Ng6 {[%clk 0:02:46]} 13. Be3 {[%clk 0:02:23]}  Rc8 {[%clk 0:02:35]} 14. f4 {[%clk 0:02:11]}  Qh4 {[%clk 0:02:26]} 15. Bxc5 {[%clk 0:02:10]}  Qxg3 {[%clk 0:02:25]} 16. hxg3 {[%clk 0:02:10]}  Rxc5 {[%clk 0:02:26]} 17. Rfd1 {[%clk 0:02:06]}  Rc7 {[%clk 0:02:21]} 18. Rd6 {[%clk 0:02:03]}  Ke7 {[%clk 0:02:06]} 19. Rad1 {[%clk 0:02:01]}  Rd8 {[%clk 0:02:07]} 20. e5 {[%clk 0:01:55]}  f6 {[%clk 0:02:07]} 21. exf6+ {[%clk 0:01:38]}  gxf6 {[%clk 0:02:07]} 22. Bf3 {[%clk 0:01:38]}  Bxf3 {[%clk 0:01:44]} 23. gxf3 {[%clk 0:01:39]}  Rc6 {[%clk 0:01:39]} 24. Rxc6 {[%clk 0:01:17]}  dxc6 {[%clk 0:01:40]} 25. Rxd8 {[%clk 0:01:18]}  Kxd8 {[%clk 0:01:41]} 26. Ne4 {[%clk 0:01:18]}  Ke7 {[%clk 0:01:38]} 27. b4 {[%clk 0:01:15]}  f5 {[%clk 0:01:31]} 28. Nc5 {[%clk 0:01:14]}  e5 {[%clk 0:01:32]} 29. fxe5 {[%clk 0:00:57]}  Nxe5 {[%clk 0:01:32]} 30. Kf2 {[%clk 0:00:58]}  Nc4 {[%clk 0:01:29]} 31. a4 {[%clk 0:00:48]}  a5 {[%clk 0:01:09]} 32. bxa5 {[%clk 0:00:46]}  Nxa5 {[%clk 0:01:06]} 33. axb5 {[%clk 0:00:45]}  cxb5 {[%clk 0:01:06]} 34. Ke3 {[%clk 0:00:46]}  Kd6 {[%clk 0:01:01]} 35. Nb3 {[%clk 0:00:41]}  Nxb3 {[%clk 0:00:55]} 36. cxb3 {[%clk 0:00:42]}  Kc5 {[%clk 0:00:56]} 37. Kd3 {[%clk 0:00:36]}  Kb4 {[%clk 0:00:51]} 38. Kc2 {[%clk 0:00:35]}  h5 {[%clk 0:00:48]} 39. Kb2 {[%clk 0:00:31]}  Kc5 {[%clk 0:00:35]} 40. Kc3 {[%clk 0:00:31]}  Kd5 {[%clk 0:00:31]} 41. Kd3 {[%clk 0:00:27]}  Kc5 {[%clk 0:00:21]} 42. Kc3 {[%clk 0:00:23]}  f4 {[%clk 0:00:15]} 43. gxf4 {[%clk 0:00:13]}  h4 {[%clk 0:00:15]} 44. f5 {[%clk 0:00:11]}  h3 {[%clk 0:00:14]} 45. f6 {[%clk 0:00:12]}  Kd6 {[%clk 0:00:14]} 46. Kb4 {[%clk 0:00:10]}  h2 {[%clk 0:00:13]} 0-1


[Site "https://www.chess.com"]

[Event "Titled Tuesday Blitz August 08 Early 2023"]
[White "Martins, Bruno Andre Leite"]
[Black "Djordjevic, Vuk"]
[WhiteFideId "1942255"]
[BlackFideId "902098"]
[WhiteElo "2527"]
[BlackElo "2735"]
[Result "1-0"]
[Round "2"]
[TimeControl "180+1"]
[Date "2023.08.08"]
[WhiteClock "0:00:06"]
[BlackClock "0:00:00"]
[Board "92"]

1. Nf3 {[%clk 0:02:52]}  e6 {[%clk 0:03:00]} 2. e4 {[%clk 0:02:51]}  d5 {[%clk 0:02:59]} 3. exd5 {[%clk 0:02:49]}  exd5 {[%clk 0:03:00]} 4. d4 {[%clk 0:02:49]}  Bd6 {[%clk 0:03:01]} 5. h3 {[%clk 0:02:48]}  Bf5 {[%clk 0:02:58]} 6. c4 {[%clk 0:02:48]}  Nf6 {[%clk 0:02:49]} 7. Nc3 {[%clk 0:02:46]}  dxc4 {[%clk 0:02:39]} 8. Bxc4 {[%clk 0:02:39]}  Nbd7 {[%clk 0:02:39]} 9. O-O {[%clk 0:02:38]}  O-O {[%clk 0:02:37]} 10. Nh4 {[%clk 0:02:30]}  Be4 {[%clk 0:01:48]} 11. Nxe4 {[%clk 0:02:25]}  Nxe4 {[%clk 0:01:47]} 12. Nf5 {[%clk 0:02:23]}  Nef6 {[%clk 0:01:39]} 13. Qf3 {[%clk 0:02:16]}  Nb6 {[%clk 0:01:37]} 14. Bd3 {[%clk 0:02:15]}  g6 {[%clk 0:01:23]} 15. Nxd6 {[%clk 0:01:42]}  Qxd6 {[%clk 0:01:24]} 16. Rd1 {[%clk 0:01:41]}  Rfe8 {[%clk 0:01:18]} 17. Bf4 {[%clk 0:01:37]}  Qd5 {[%clk 0:01:17]} 18. Bxc7 {[%clk 0:01:26]}  Qxf3 {[%clk 0:01:16]} 19. gxf3 {[%clk 0:01:27]}  Nbd5 {[%clk 0:01:15]} 20. Be5 {[%clk 0:01:26]}  Rad8 {[%clk 0:01:10]} 21. Rac1 {[%clk 0:01:21]}  Nd7 {[%clk 0:01:01]} 22. Bg3 {[%clk 0:01:13]}  a6 {[%clk 0:00:56]} 23. Bc4 {[%clk 0:01:06]}  N7f6 {[%clk 0:00:53]} 24. Be5 {[%clk 0:00:45]}  Re6 {[%clk 0:00:36]} 25. Bb3 {[%clk 0:00:40]}  b6 {[%clk 0:00:16]} 26. a3 {[%clk 0:00:33]}  Nh5 {[%clk 0:00:16]} 27. Bxd5 {[%clk 0:00:27]}  Re7 {[%clk 0:00:10]} 28. Rc6 {[%clk 0:00:18]}  Red7 {[%clk 0:00:05]} 29. Bb3 {[%clk 0:00:17]}  Re8 {[%clk 0:00:05]} 30. Rdc1 {[%clk 0:00:16]}  Kf8 {[%clk 0:00:03]} 31. Rc8 {[%clk 0:00:15]}  f6 {[%clk 0:00:02]} 32. Rxe8+ {[%clk 0:00:15]}  Kxe8 {[%clk 0:00:03]} 33. Bc7 {[%clk 0:00:10]}  Rxd4 {[%clk 0:00:02]} 34. Bxb6 {[%clk 0:00:10]}  Rd3 {[%clk 0:00:03]} 35. Ba4+ {[%clk 0:00:11]}  Kf7 {[%clk 0:00:03]} 36. Bc6 {[%clk 0:00:09]}  Nf4 {[%clk 0:00:03]} 37. Be3 {[%clk 0:00:09]}  Ne2+ {[%clk 0:00:03]} 38. Kg2 {[%clk 0:00:07]}  Rxe3 {[%clk 0:00:02]} 39. Bd5+ {[%clk 0:00:04]}  Ke7 {[%clk 0:00:01]} 40. fxe3 {[%clk 0:00:03]}  Nxc1 {[%clk 0:00:01]} 41. Bc4 {[%clk 0:00:04]}  Kd6 {[%clk 0:00:01]} 42. b4 {[%clk 0:00:02]}  a5 {[%clk 0:00:01]} 43. bxa5 {[%clk 0:00:02]}  Kc5 {[%clk 0:00:01]} 44. a6 {[%clk 0:00:03]}  Kxc4 {[%clk 0:00:01]} 45. a7 {[%clk 0:00:03]}  Nd3 {[%clk 0:00:01]} 46. a8=Q {[%clk 0:00:04]}  Nc5 {[%clk 0:00:01]} 47. Kg3 {[%clk 0:00:04]}  f5 {[%clk 0:00:02]} 48. Qg8+ {[%clk 0:00:05]}  Kd3 {[%clk 0:00:02]} 49. Qxh7 {[%clk 0:00:06]}  Kxe3 {[%clk 0:00:01]} 50. Qh6+ {[%clk 0:00:05]}  f4+ {[%clk 0:00:02]} 51. Qxf4+ {[%clk 0:00:05]}  Kd3 {[%clk 0:00:03]} 52. Qg4 {[%clk 0:00:06]}  Ke2 {[%clk 0:00:00]} 53. Qxg6 {[%clk 0:00:06]} 1-0


[Site "https://www.chess.com"]

[Event "Titled Tuesday Blitz August 08 Early 2023"]
[White "Timmermans, Mark"]
[Black "ArtemDyachuk"]
[WhiteFideId "1026399"]
[WhiteElo "2733"]
[BlackElo "2523"]
[Result "1/2-1/2"]
[Round "2"]
[TimeControl "180+1"]
[Date "2023.08.08"]
[WhiteClock "0:00:05"]
[BlackClock "0:00:06"]
[Board "93"]

1. b4 {[%clk 0:02:59]}  d5 {[%clk 0:02:55]} 2. Bb2 {[%clk 0:02:59]}  Bf5 {[%clk 0:02:55]} 3. e3 {[%clk 0:02:59]}  e6 {[%clk 0:02:53]} 4. c4 {[%clk 0:02:59]}  Nf6 {[%clk 0:02:52]} 5. b5 {[%clk 0:02:59]}  Be7 {[%clk 0:02:51]} 6. Nf3 {[%clk 0:02:59]}  O-O {[%clk 0:02:50]} 7. Be2 {[%clk 0:02:59]}  dxc4 {[%clk 0:02:47]} 8. Bxc4 {[%clk 0:03:00]}  Bd3 {[%clk 0:02:47]} 9. Bxd3 {[%clk 0:02:57]}  Qxd3 {[%clk 0:02:47]} 10. a4 {[%clk 0:02:56]}  Nbd7 {[%clk 0:02:43]} 11. Nc3 {[%clk 0:02:51]}  Nc5 {[%clk 0:02:43]} 12. Qe2 {[%clk 0:02:50]}  Qc2 {[%clk 0:02:35]} 13. Ba3 {[%clk 0:02:02]}  Nd3+ {[%clk 0:02:34]} 14. Kf1 {[%clk 0:02:02]}  Bxa3 {[%clk 0:02:32]} 15. Nd4 {[%clk 0:02:02]}  Nc1 {[%clk 0:01:51]} 16. Nxc2 {[%clk 0:01:57]}  Nxe2 {[%clk 0:01:51]} 17. Kxe2 {[%clk 0:01:53]}  Bb2 {[%clk 0:01:50]} 18. Rab1 {[%clk 0:01:53]}  Bxc3 {[%clk 0:01:50]} 19. dxc3 {[%clk 0:01:54]}  Ne4 {[%clk 0:01:46]} 20. Rb3 {[%clk 0:01:46]}  Rad8 {[%clk 0:01:44]} 21. Nd4 {[%clk 0:01:44]}  e5 {[%clk 0:01:41]} 22. Nf3 {[%clk 0:01:43]}  f6 {[%clk 0:01:41]} 23. Rc1 {[%clk 0:01:34]}  Rd7 {[%clk 0:01:34]} 24. Rb4 {[%clk 0:01:30]}  Nc5 {[%clk 0:01:34]} 25. Rd1 {[%clk 0:01:17]}  Rfd8 {[%clk 0:01:32]} 26. Rxd7 {[%clk 0:01:17]}  Rxd7 {[%clk 0:01:33]} 27. a5 {[%clk 0:01:09]}  b6 {[%clk 0:01:32]} 28. axb6 {[%clk 0:01:04]}  axb6 {[%clk 0:01:33]} 29. Nd2 {[%clk 0:00:58]}  Nd3 {[%clk 0:01:29]} 30. Rc4 {[%clk 0:00:53]}  Nc1+ {[%clk 0:01:21]} 31. Ke1 {[%clk 0:00:49]}  Nd3+ {[%clk 0:01:21]} 32. Ke2 {[%clk 0:00:50]}  Nxf2 {[%clk 0:01:04]} 33. Kxf2 {[%clk 0:00:50]}  Rxd2+ {[%clk 0:01:03]} 34. Kf3 {[%clk 0:00:50]}  Rd7 {[%clk 0:00:49]} 35. g4 {[%clk 0:00:49]}  Kf7 {[%clk 0:00:49]} 36. Ke4 {[%clk 0:00:42]}  Kg6 {[%clk 0:00:37]} 37. h4 {[%clk 0:00:42]}  Kf7 {[%clk 0:00:34]} 38. Rc6 {[%clk 0:00:37]}  h6 {[%clk 0:00:33]} 39. c4 {[%clk 0:00:33]}  Ke7 {[%clk 0:00:31]} 40. c5 {[%clk 0:00:33]}  bxc5 {[%clk 0:00:30]} 41. Rxc5 {[%clk 0:00:34]}  Kd8 {[%clk 0:00:26]} 42. g5 {[%clk 0:00:34]}  hxg5 {[%clk 0:00:23]} 43. hxg5 {[%clk 0:00:35]}  Rd6 {[%clk 0:00:23]} 44. gxf6 {[%clk 0:00:34]}  gxf6 {[%clk 0:00:22]} 45. Kf5 {[%clk 0:00:31]}  Kd7 {[%clk 0:00:19]} 46. e4 {[%clk 0:00:28]}  Rb6 {[%clk 0:00:15]} 47. Rd5+ {[%clk 0:00:26]}  Ke7 {[%clk 0:00:15]} 48. Rc5 {[%clk 0:00:25]}  Kd7 {[%clk 0:00:15]} 49. Rd5+ {[%clk 0:00:17]}  Ke7 {[%clk 0:00:07]} 50. Kg6 {[%clk 0:00:18]}  c6 {[%clk 0:00:05]} 51. bxc6 {[%clk 0:00:17]}  Rxc6 {[%clk 0:00:06]} 52. Ra5 {[%clk 0:00:12]}  Ke6 {[%clk 0:00:05]} 53. Rb5 {[%clk 0:00:10]}  Rc1 {[%clk 0:00:04]} 54. Rb6+ {[%clk 0:00:10]}  Ke7 {[%clk 0:00:05]} 55. Rb7+ {[%clk 0:00:11]}  Ke6 {[%clk 0:00:05]} 56. Rb6+ {[%clk 0:00:11]}  Ke7 {[%clk 0:00:05]} 57. Rb7+ {[%clk 0:00:11]}  Kd6 {[%clk 0:00:06]} 58. Rb6+ {[%clk 0:00:08]}  Kc5 {[%clk 0:00:05]} 59. Ra6 {[%clk 0:00:03]}  Kd4 {[%clk 0:00:05]} 60. Ra4+ {[%clk 0:00:04]}  Ke3 {[%clk 0:00:05]} 61. Kxf6 {[%clk 0:00:05]}  Kf4 {[%clk 0:00:05]} 62. Ke6 {[%clk 0:00:05]}  Re1 {[%clk 0:00:05]} 63. Kd5 {[%clk 0:00:05]}  Rd1+ {[%clk 0:00:05]} 64. Kc5 {[%clk 0:00:05]}  Re1 {[%clk 0:00:05]} 65. Kd5 {[%clk 0:00:05]}  Rd1+ {[%clk 0:00:06]} 66. Kc5 {[%clk 0:00:06]}  Rd2 {[%clk 0:00:06]} 67. Rb4 {[%clk 0:00:06]}  Rc2+ {[%clk 0:00:06]} 68. Kd5 {[%clk 0:00:04]}  Rd2+ {[%clk 0:00:06]} 69. Kc5 {[%clk 0:00:05]}  Rc2+ {[%clk 0:00:06]} 70. Kd5 {[%clk 0:00:05]}  Rd2+ {[%clk 0:00:06]} 71. Kc5 {[%clk 0:00:05]} 1/2-1/2


[Site "https://www.chess.com"]